[Event "Titled Tuesday Blitz January 17 Early 2023"]
[White "Baches Garcia, Guillermo"]
[Black "Deev, Andrei"]
[WhiteFideId "2209764"]
[BlackFideId "4102690"]
[WhiteElo "2327"]
[BlackElo "2390"]
[Result "1-0"]
[Round "09"]
[TimeControl "180+2"]
[Date "2023.01.17"]
[WhiteClock "0:00:19"]
[BlackClock "0:00:01"]

1. e4 {[%clk 0:03:00]}  d6 {[%clk 0:03:00]} 2. d4 {[%clk 0:03:00]}  Nf6 {[%clk 0:03:00]} 3. f3 {[%clk 0:03:01]}  c5 {[%clk 0:03:00]} 4. Ne2 {[%clk 0:03:01]}  Nbd7 {[%clk 0:02:58]} 5. c4 {[%clk 0:03:00]}  g6 {[%clk 0:02:55]} 6. Nbc3 {[%clk 0:03:00]}  Bg7 {[%clk 0:02:54]} 7. Be3 {[%clk 0:03:00]}  O-O {[%clk 0:02:53]} 8. Qd2 {[%clk 0:02:59]}  a6 {[%clk 0:02:52]} 9. a4 {[%clk 0:02:50]}  Qc7 {[%clk 0:02:51]} 10. d5 {[%clk 0:02:44]}  e5 {[%clk 0:02:40]} 11. dxe6 {[%clk 0:02:29]}  fxe6 {[%clk 0:02:40]} 12. Nf4 {[%clk 0:02:17]}  Ne5 {[%clk 0:02:35]} 13. a5 {[%clk 0:02:11]}  Rd8 {[%clk 0:02:17]} 14. Be2 {[%clk 0:02:10]}  Nc6 {[%clk 0:02:10]} 15. Nd1 {[%clk 0:01:55]}  Nd4 {[%clk 0:01:40]} 16. Bxd4 {[%clk 0:01:43]}  cxd4 {[%clk 0:01:40]} 17. O-O {[%clk 0:01:31]}  e5 {[%clk 0:01:32]} 18. Nd5 {[%clk 0:01:26]}  Nxd5 {[%clk 0:01:32]} 19. cxd5 {[%clk 0:01:21]}  Qf7 {[%clk 0:01:12]} 20. b4 {[%clk 0:01:12]}  Qf8 {[%clk 0:01:08]} 21. Nb2 {[%clk 0:01:07]}  Bd7 {[%clk 0:01:01]} 22. Nc4 {[%clk 0:01:04]}  Bh6 {[%clk 0:00:44]} 23. Qa2 {[%clk 0:00:52]}  Rac8 {[%clk 0:00:42]} 24. Bd3 {[%clk 0:00:41]}  Bb5 {[%clk 0:00:40]} 25. Rae1 {[%clk 0:00:36]}  Rc7 {[%clk 0:00:30]} 26. Qe2 {[%clk 0:00:30]}  Bxc4 {[%clk 0:00:24]} 27. Bxc4 {[%clk 0:00:27]}  Rdc8 {[%clk 0:00:23]} 28. Bd3 {[%clk 0:00:27]}  Rc3 {[%clk 0:00:14]} 29. g3 {[%clk 0:00:27]}  Be3+ {[%clk 0:00:10]} 30. Kg2 {[%clk 0:00:26]}  Rb3 {[%clk 0:00:03]} 31. f4 {[%clk 0:00:24]}  Rxb4 {[%clk 0:00:01]} 32. fxe5 {[%clk 0:00:20]}  Qe7 {[%clk 0:00:01]} 33. e6 {[%clk 0:00:19]} 1-0


[Site "https://www.chess.com"]

[Event "Titled Tuesday Blitz January 17 Early 2023"]
[White "Grot, Blazej"]
[Black "Heinemann, Josefine"]
[WhiteFideId "21835845"]
[BlackFideId "12900460"]
[WhiteElo "1990"]
[BlackElo "2289"]
[Result "0-1"]
[Round "09"]
[TimeControl "180+2"]
[Date "2023.01.17"]
[WhiteClock "0:00:49"]
[BlackClock "0:00:53"]

1. d4 {[%clk 0:03:00]}  Nf6 {[%clk 0:02:49]} 2. c4 {[%clk 0:03:00]}  e6 {[%clk 0:02:47]} 3. g3 {[%clk 0:03:00]}  d5 {[%clk 0:02:46]} 4. Bg2 {[%clk 0:03:00]}  dxc4 {[%clk 0:02:43]} 5. Nf3 {[%clk 0:03:00]}  c5 {[%clk 0:02:40]} 6. Qa4+ {[%clk 0:02:50]}  Nbd7 {[%clk 0:02:37]} 7. Qxc4 {[%clk 0:02:49]}  a6 {[%clk 0:02:36]} 8. O-O {[%clk 0:02:44]}  b5 {[%clk 0:02:36]} 9. Qc2 {[%clk 0:02:43]}  Bb7 {[%clk 0:02:36]} 10. Rd1 {[%clk 0:02:43]}  Rc8 {[%clk 0:02:33]} 11. Nc3 {[%clk 0:02:39]}  cxd4 {[%clk 0:02:30]} 12. Nxd4 {[%clk 0:02:38]}  Bxg2 {[%clk 0:02:30]} 13. Kxg2 {[%clk 0:02:37]}  b4 {[%clk 0:02:31]} 14. Qa4 {[%clk 0:02:18]}  bxc3 {[%clk 0:02:26]} 15. bxc3 {[%clk 0:02:19]}  Qc7 {[%clk 0:02:19]} 16. Bg5 {[%clk 0:02:09]}  Be7 {[%clk 0:02:17]} 17. Rac1 {[%clk 0:02:07]}  O-O {[%clk 0:02:17]} 18. h4 {[%clk 0:02:06]}  Nc5 {[%clk 0:02:17]} 19. Qc2 {[%clk 0:02:04]}  Rfd8 {[%clk 0:02:09]} 20. Be3 {[%clk 0:02:03]}  Nce4 {[%clk 0:02:01]} 21. g4 {[%clk 0:01:58]}  Nxc3 {[%clk 0:01:50]} 22. Rd3 {[%clk 0:01:54]}  Ncd5 {[%clk 0:01:49]} 23. Qxc7 {[%clk 0:01:51]}  Rxc7 {[%clk 0:01:49]} 24. Nc6 {[%clk 0:01:47]}  Nxe3+ {[%clk 0:01:45]} 25. Rxe3 {[%clk 0:01:43]}  Re8 {[%clk 0:01:42]} 26. g5 {[%clk 0:01:41]}  Nd5 {[%clk 0:01:41]} 27. Rb3 {[%clk 0:01:37]}  h6 {[%clk 0:01:33]} 28. gxh6 {[%clk 0:01:34]}  gxh6 {[%clk 0:01:31]} 29. Nxe7+ {[%clk 0:01:31]}  Rcxe7 {[%clk 0:01:30]} 30. Rc6 {[%clk 0:01:30]}  Ra8 {[%clk 0:01:25]} 31. a4 {[%clk 0:01:26]}  Rd7 {[%clk 0:01:22]} 32. e4 {[%clk 0:01:21]}  Nf6 {[%clk 0:01:19]} 33. e5 {[%clk 0:01:19]}  Nd5 {[%clk 0:01:19]} 34. a5 {[%clk 0:01:17]}  Kf8 {[%clk 0:01:18]} 35. Kh2 {[%clk 0:01:14]}  Ke7 {[%clk 0:01:17]} 36. Rg3 {[%clk 0:01:12]}  Nf4 {[%clk 0:01:14]} 37. Rc5 {[%clk 0:01:02]}  Nd3 {[%clk 0:01:11]} 38. Rc2 {[%clk 0:00:53]}  Nxe5 {[%clk 0:01:09]} 39. Rg7 {[%clk 0:00:53]}  Rb8 {[%clk 0:01:04]} 40. Rh7 {[%clk 0:00:51]}  Rb5 {[%clk 0:00:54]} 41. Rxh6 {[%clk 0:00:49]}  Ng4+ {[%clk 0:00:53]} 0-1


[Site "https://www.chess.com"]

[Event "Titled Tuesday Blitz January 17 Early 2023"]
[White "Zaichenko, Daria"]
[Black "Castellanos Gomez, Alejandro"]
[WhiteFideId "4197453"]
[BlackFideId "22284141"]
[WhiteElo "2104"]
[BlackElo "2253"]
[Result "0-1"]
[Round "09"]
[TimeControl "180+2"]
[Date "2023.01.17"]
[WhiteClock "0:00:12"]
[BlackClock "0:00:05"]

1. e4 {[%clk 0:03:00]}  d5 {[%clk 0:02:56]} 2. exd5 {[%clk 0:03:00]}  Nf6 {[%clk 0:02:56]} 3. Bb5+ {[%clk 0:02:58]}  Nbd7 {[%clk 0:02:56]} 4. c4 {[%clk 0:02:56]}  a6 {[%clk 0:02:57]} 5. Bxd7+ {[%clk 0:02:56]}  Bxd7 {[%clk 0:02:54]} 6. d4 {[%clk 0:02:53]}  b5 {[%clk 0:02:54]} 7. b3 {[%clk 0:02:52]}  e6 {[%clk 0:02:19]} 8. dxe6 {[%clk 0:02:50]}  Bxe6 {[%clk 0:02:20]} 9. d5 {[%clk 0:02:45]}  Bg4 {[%clk 0:02:20]} 10. f3 {[%clk 0:02:41]}  Bh5 {[%clk 0:02:10]} 11. Ne2 {[%clk 0:02:38]}  Bc5 {[%clk 0:02:09]} 12. Nbc3 {[%clk 0:02:26]}  O-O {[%clk 0:02:06]} 13. Bg5 {[%clk 0:02:25]}  Re8 {[%clk 0:01:57]} 14. Ne4 {[%clk 0:02:16]}  Bb4+ {[%clk 0:01:28]} 15. Kf1 {[%clk 0:02:07]}  Rxe4 {[%clk 0:01:13]} 16. fxe4 {[%clk 0:02:01]}  h6 {[%clk 0:01:13]} 17. Bf4 {[%clk 0:01:27]}  Nxe4 {[%clk 0:01:11]} 18. Qd3 {[%clk 0:01:27]}  Bg6 {[%clk 0:01:02]} 19. Qh3 {[%clk 0:01:09]}  Qf6 {[%clk 0:00:46]} 20. Rd1 {[%clk 0:01:03]}  Re8 {[%clk 0:00:36]} 21. g3 {[%clk 0:00:41]}  Ng5 {[%clk 0:00:29]} 22. Qg4 {[%clk 0:00:34]}  Bf5 {[%clk 0:00:19]} 23. Qh4 {[%clk 0:00:31]}  Bh3+ {[%clk 0:00:19]} 24. Kf2 {[%clk 0:00:24]}  Ne4+ {[%clk 0:00:16]} 25. Kf3 {[%clk 0:00:20]}  Qf5 {[%clk 0:00:08]} 26. g4 {[%clk 0:00:17]}  Ng5+ {[%clk 0:00:04]} 27. Kg3 {[%clk 0:00:17]}  Qe4 {[%clk 0:00:04]} 28. Bxg5 {[%clk 0:00:14]}  Qg2+ {[%clk 0:00:04]} 29. Kf4 {[%clk 0:00:13]}  Qe4+ {[%clk 0:00:04]} 30. Kg3 {[%clk 0:00:13]}  Qg2+ {[%clk 0:00:03]} 31. Kf4 {[%clk 0:00:14]}  Re4+ {[%clk 0:00:04]} 32. Kf5 {[%clk 0:00:13]}  g6+ {[%clk 0:00:04]} 33. Kf6 {[%clk 0:00:12]}  Be7# {[%clk 0:00:05]} 0-1


[Site "https://www.chess.com"]

[Event "Titled Tuesday Blitz January 17 Early 2023"]
[White "Zherebtsova, Alexandra"]
[Black "Cramling Bellon, Anna"]
[WhiteFideId "24129518"]
[BlackFideId "32009232"]
[WhiteElo "2155"]
[BlackElo "2043"]
[Result "1-0"]
[Round "09"]
[TimeControl "180+2"]
[Date "2023.01.17"]
[WhiteClock "0:00:13"]
[BlackClock "0:00:05"]

1. d4 {[%clk 0:02:57]}  Nf6 {[%clk 0:02:20]} 2. Nf3 {[%clk 0:02:53]}  d5 {[%clk 0:02:19]} 3. c4 {[%clk 0:02:53]}  e6 {[%clk 0:02:19]} 4. Nbd2 {[%clk 0:02:53]}  c6 {[%clk 0:02:18]} 5. e3 {[%clk 0:02:53]}  Nbd7 {[%clk 0:02:15]} 6. b3 {[%clk 0:02:52]}  Be7 {[%clk 0:02:15]} 7. Bb2 {[%clk 0:02:52]}  Ne4 {[%clk 0:02:15]} 8. Bd3 {[%clk 0:02:52]}  f5 {[%clk 0:02:11]} 9. Qc2 {[%clk 0:02:47]}  O-O {[%clk 0:02:01]} 10. h3 {[%clk 0:02:47]}  Ndf6 {[%clk 0:01:53]} 11. a3 {[%clk 0:02:38]}  Nxd2 {[%clk 0:01:50]} 12. Nxd2 {[%clk 0:02:36]}  Ne4 {[%clk 0:01:51]} 13. Nf3 {[%clk 0:02:28]}  b6 {[%clk 0:01:32]} 14. Ne5 {[%clk 0:02:27]}  Bb7 {[%clk 0:01:32]} 15. O-O {[%clk 0:02:06]}  c5 {[%clk 0:01:30]} 16. cxd5 {[%clk 0:01:59]}  exd5 {[%clk 0:01:28]} 17. dxc5 {[%clk 0:01:54]}  bxc5 {[%clk 0:01:28]} 18. Rfd1 {[%clk 0:01:38]}  Qc7 {[%clk 0:01:18]} 19. Rac1 {[%clk 0:01:21]}  Bf6 {[%clk 0:01:17]} 20. Nf3 {[%clk 0:01:21]}  Bxb2 {[%clk 0:01:08]} 21. Qxb2 {[%clk 0:01:22]}  f4 {[%clk 0:01:06]} 22. exf4 {[%clk 0:01:12]}  Qxf4 {[%clk 0:01:07]} 23. b4 {[%clk 0:00:44]}  c4 {[%clk 0:00:50]} 24. Bxe4 {[%clk 0:00:36]}  dxe4 {[%clk 0:00:50]} 25. Nd4 {[%clk 0:00:26]}  e3 {[%clk 0:00:47]} 26. f3 {[%clk 0:00:23]}  Qe5 {[%clk 0:00:24]} 27. Qe2 {[%clk 0:00:18]}  Bd5 {[%clk 0:00:13]} 28. Nc2 {[%clk 0:00:16]}  Rae8 {[%clk 0:00:11]} 29. Rd4 {[%clk 0:00:15]}  c3 {[%clk 0:00:10]} 30. Rcd1 {[%clk 0:00:14]}  Bb3 {[%clk 0:00:10]} 31. R4d3 {[%clk 0:00:13]}  Bxc2 {[%clk 0:00:10]} 32. Qxc2 {[%clk 0:00:13]}  e2 {[%clk 0:00:11]} 33. Re1 {[%clk 0:00:13]}  Qg3 {[%clk 0:00:07]} 34. Qxc3 {[%clk 0:00:12]}  Rc8 {[%clk 0:00:03]} 35. Qd2 {[%clk 0:00:13]}  Rfe8 {[%clk 0:00:03]} 36. Rd4 {[%clk 0:00:08]}  Qe5 {[%clk 0:00:02]} 37. Re4 {[%clk 0:00:08]}  Qf5 {[%clk 0:00:02]} 38. R4xe2 {[%clk 0:00:08]}  Rxe2 {[%clk 0:00:02]} 39. Qxe2 {[%clk 0:00:09]}  Rf8 {[%clk 0:00:02]} 40. Qe6+ {[%clk 0:00:09]}  Qxe6 {[%clk 0:00:02]} 41. Rxe6 {[%clk 0:00:10]}  Rd8 {[%clk 0:00:02]} 42. Re7 {[%clk 0:00:10]}  a6 {[%clk 0:00:02]} 43. Re6 {[%clk 0:00:10]}  Ra8 {[%clk 0:00:02]} 44. Rb6 {[%clk 0:00:10]}  a5 {[%clk 0:00:02]} 45. Kf2 {[%clk 0:00:10]}  axb4 {[%clk 0:00:02]} 46. axb4 {[%clk 0:00:11]}  Ra2+ {[%clk 0:00:02]} 47. Kg3 {[%clk 0:00:11]}  Kf7 {[%clk 0:00:02]} 48. Rb7+ {[%clk 0:00:12]}  Kf6 {[%clk 0:00:03]} 49. b5 {[%clk 0:00:12]}  Rb2 {[%clk 0:00:03]} 50. b6 {[%clk 0:00:13]}  h5 {[%clk 0:00:02]} 51. h4 {[%clk 0:00:13]}  g5 {[%clk 0:00:01]} 52. hxg5+ {[%clk 0:00:13]}  Kxg5 {[%clk 0:00:02]} 53. Kh3 {[%clk 0:00:13]}  Kf5 {[%clk 0:00:02]} 54. Rh7 {[%clk 0:00:13]}  Kg6 {[%clk 0:00:02]} 55. Rb7 {[%clk 0:00:13]}  Kf6 {[%clk 0:00:02]} 56. Rb8 {[%clk 0:00:13]}  Ke7 {[%clk 0:00:02]} 57. b7 {[%clk 0:00:13]}  Kd7 {[%clk 0:00:02]} 58. Rh8 {[%clk 0:00:13]}  Kc7 {[%clk 0:00:02]} 59. Rxh5 {[%clk 0:00:12]}  Rb6 {[%clk 0:00:01]} 60. Rh7+ {[%clk 0:00:12]}  Kb8 {[%clk 0:00:02]} 61. g4 {[%clk 0:00:12]}  Rxb7 {[%clk 0:00:02]} 62. Rxb7+ {[%clk 0:00:11]}  Kxb7 {[%clk 0:00:03]} 63. Kh4 {[%clk 0:00:12]}  Kc6 {[%clk 0:00:04]} 64. Kg5 {[%clk 0:00:12]}  Kd6 {[%clk 0:00:05]} 65. Kf6 {[%clk 0:00:13]} 1-0


[Site "https://www.chess.com"]

[Event "Titled Tuesday Blitz January 17 Early 2023"]
[White "Sonnenschein, Philipp"]
[Black "Samaganova, Aleksandra"]
[WhiteFideId "16250877"]
[BlackFideId "13800221"]
[WhiteElo "2224"]
[BlackElo "1856"]
[Result "0-1"]
[Round "09"]
[TimeControl "180+2"]
[Date "2023.01.17"]
[WhiteClock "0:00:28"]
[BlackClock "0:00:05"]

1. e4 {[%clk 0:03:00]}  c5 {[%clk 0:02:59]} 2. Nf3 {[%clk 0:03:01]}  e6 {[%clk 0:02:59]} 3. d4 {[%clk 0:03:01]}  cxd4 {[%clk 0:02:59]} 4. Nxd4 {[%clk 0:03:01]}  a6 {[%clk 0:02:59]} 5. a3 {[%clk 0:03:00]}  Qc7 {[%clk 0:02:58]} 6. c4 {[%clk 0:02:59]}  Nf6 {[%clk 0:02:58]} 7. Nc3 {[%clk 0:02:59]}  b6 {[%clk 0:02:58]} 8. Be3 {[%clk 0:02:57]}  Bb7 {[%clk 0:02:58]} 9. f3 {[%clk 0:02:55]}  d6 {[%clk 0:02:56]} 10. Rc1 {[%clk 0:02:54]}  Nbd7 {[%clk 0:02:56]} 11. Qd2 {[%clk 0:02:54]}  Rc8 {[%clk 0:02:56]} 12. Be2 {[%clk 0:02:53]}  Be7 {[%clk 0:02:55]} 13. O-O {[%clk 0:02:53]}  O-O {[%clk 0:02:55]} 14. b4 {[%clk 0:02:52]}  Qb8 {[%clk 0:02:55]} 15. Rfd1 {[%clk 0:02:49]}  Bd8 {[%clk 0:02:52]} 16. Kh1 {[%clk 0:02:36]}  Bc7 {[%clk 0:02:50]} 17. Bg1 {[%clk 0:02:36]}  Rfe8 {[%clk 0:02:45]} 18. Nb3 {[%clk 0:02:30]}  d5 {[%clk 0:02:38]} 19. cxd5 {[%clk 0:02:21]}  exd5 {[%clk 0:02:32]} 20. exd5 {[%clk 0:02:21]}  Bf4 {[%clk 0:02:27]} 21. Qd3 {[%clk 0:01:51]}  Bxc1 {[%clk 0:02:22]} 22. Rxc1 {[%clk 0:01:52]}  Ne5 {[%clk 0:01:54]} 23. Qf5 {[%clk 0:01:49]}  Nxd5 {[%clk 0:01:39]} 24. Nxd5 {[%clk 0:01:44]}  Bxd5 {[%clk 0:01:34]} 25. Rxc8 {[%clk 0:01:01]}  Qxc8 {[%clk 0:01:17]} 26. Nd4 {[%clk 0:00:58]}  Bc4 {[%clk 0:00:55]} 27. Bxc4 {[%clk 0:00:44]}  Qxf5 {[%clk 0:00:41]} 28. Nxf5 {[%clk 0:00:45]}  Nxc4 {[%clk 0:00:41]} 29. a4 {[%clk 0:00:41]}  Re1 {[%clk 0:00:37]} 30. h4 {[%clk 0:00:40]}  Rb1 {[%clk 0:00:30]} 31. Ne7+ {[%clk 0:00:38]}  Kf8 {[%clk 0:00:26]} 32. Nd5 {[%clk 0:00:35]}  Ra1 {[%clk 0:00:16]} 33. Kh2 {[%clk 0:00:30]}  Rxa4 {[%clk 0:00:12]} 34. Nxb6 {[%clk 0:00:30]}  Nxb6 {[%clk 0:00:08]} 35. Bxb6 {[%clk 0:00:31]}  Ke8 {[%clk 0:00:06]} 36. Bc5 {[%clk 0:00:30]}  Kd7 {[%clk 0:00:05]} 37. Kg3 {[%clk 0:00:29]}  Kc6 {[%clk 0:00:04]} 38. Kf4 {[%clk 0:00:28]}  a5 {[%clk 0:00:04]} 39. Ke5 {[%clk 0:00:27]}  axb4 {[%clk 0:00:04]} 40. Bd4 {[%clk 0:00:27]}  b3 {[%clk 0:00:03]} 41. Bc3 {[%clk 0:00:27]}  Ra2 {[%clk 0:00:03]} 42. f4 {[%clk 0:00:27]}  b2 {[%clk 0:00:04]} 43. Bxb2 {[%clk 0:00:27]}  Rxb2 {[%clk 0:00:04]} 44. f5 {[%clk 0:00:28]}  Rb5+ {[%clk 0:00:05]} 45. Kf4 {[%clk 0:00:28]}  f6 {[%clk 0:00:05]} 0-1


[Site "https://www.chess.com"]

[Event "Titled Tuesday Blitz January 17 Early 2023"]
[White "Jenkins, Drake"]
[Black "Dinu, Dumitru-Daniel"]
[WhiteFideId "2022397"]
[BlackFideId "1208403"]
[WhiteElo "2130"]
[BlackElo "2203"]
[Result "0-1"]
[Round "09"]
[TimeControl "180+2"]
[Date "2023.01.17"]
[WhiteClock "0:00:01"]
[BlackClock "0:00:05"]

1. Nf3 {[%clk 0:02:57]}  Nf6 {[%clk 0:02:21]} 2. c4 {[%clk 0:02:56]}  e6 {[%clk 0:02:21]} 3. g3 {[%clk 0:02:56]}  b6 {[%clk 0:02:19]} 4. Bg2 {[%clk 0:02:57]}  Bb7 {[%clk 0:02:20]} 5. O-O {[%clk 0:02:57]}  Be7 {[%clk 0:02:20]} 6. Nc3 {[%clk 0:02:50]}  O-O {[%clk 0:02:21]} 7. Rb1 {[%clk 0:02:50]}  c5 {[%clk 0:02:21]} 8. d4 {[%clk 0:02:47]}  cxd4 {[%clk 0:02:20]} 9. Qxd4 {[%clk 0:02:47]}  Nc6 {[%clk 0:02:20]} 10. Qd2 {[%clk 0:02:44]}  Rc8 {[%clk 0:02:17]} 11. Rd1 {[%clk 0:02:44]}  a6 {[%clk 0:02:07]} 12. b3 {[%clk 0:02:43]}  Bb4 {[%clk 0:02:02]} 13. Qd3 {[%clk 0:02:04]}  Bxc3 {[%clk 0:01:56]} 14. Qxc3 {[%clk 0:02:04]}  d5 {[%clk 0:01:57]} 15. cxd5 {[%clk 0:01:53]}  Nxd5 {[%clk 0:01:53]} 16. Qa1 {[%clk 0:01:26]}  Qe7 {[%clk 0:01:46]} 17. Bb2 {[%clk 0:01:22]}  f6 {[%clk 0:01:45]} 18. a3 {[%clk 0:01:17]}  Rfd8 {[%clk 0:01:42]} 19. b4 {[%clk 0:01:16]}  b5 {[%clk 0:01:41]} 20. Qa2 {[%clk 0:01:14]}  Nb6 {[%clk 0:01:39]} 21. Bh3 {[%clk 0:01:04]}  Nc4 {[%clk 0:01:34]} 22. Rdc1 {[%clk 0:00:50]}  Kh8 {[%clk 0:01:28]} 23. Bc3 {[%clk 0:00:39]}  Nb8 {[%clk 0:01:03]} 24. Bg2 {[%clk 0:00:29]}  Bd5 {[%clk 0:00:58]} 25. Qa1 {[%clk 0:00:20]}  Nd7 {[%clk 0:00:54]} 26. Nd4 {[%clk 0:00:17]}  Bxg2 {[%clk 0:00:54]} 27. Kxg2 {[%clk 0:00:18]}  Ndb6 {[%clk 0:00:53]} 28. Rd1 {[%clk 0:00:15]}  Nd5 {[%clk 0:00:43]} 29. Nf3 {[%clk 0:00:14]}  Nce3+ {[%clk 0:00:36]} 30. fxe3 {[%clk 0:00:13]}  Nxe3+ {[%clk 0:00:34]} 31. Kf2 {[%clk 0:00:10]}  Nxd1+ {[%clk 0:00:34]} 32. Rxd1 {[%clk 0:00:09]}  Rxd1 {[%clk 0:00:34]} 33. Qxd1 {[%clk 0:00:08]}  Rxc3 {[%clk 0:00:34]} 34. Qd4 {[%clk 0:00:05]}  Rc8 {[%clk 0:00:31]} 35. h4 {[%clk 0:00:05]}  Ra8 {[%clk 0:00:24]} 36. Qg4 {[%clk 0:00:04]}  a5 {[%clk 0:00:16]} 37. h5 {[%clk 0:00:04]}  axb4 {[%clk 0:00:16]} 38. axb4 {[%clk 0:00:04]}  Ra4 {[%clk 0:00:14]} 39. h6 {[%clk 0:00:04]}  gxh6 {[%clk 0:00:12]} 40. Qh5 {[%clk 0:00:02]}  Rxb4 {[%clk 0:00:08]} 41. Qxh6 {[%clk 0:00:02]}  Qc5+ {[%clk 0:00:08]} 42. Kg2 {[%clk 0:00:02]}  Qe7 {[%clk 0:00:07]} 43. Nh4 {[%clk 0:00:01]}  Rxh4 {[%clk 0:00:05]} 0-1


[Site "https://www.chess.com"]

[Event "Titled Tuesday Blitz January 17 Early 2023"]
[White "Cepo, Toni"]
[Black "Tarasova, Viktoriya"]
[WhiteFideId "4675916"]
[BlackFideId "4175840"]
[WhiteElo "2145"]
[BlackElo "2226"]
[Result "0-1"]
[Round "09"]
[TimeControl "180+2"]
[Date "2023.01.17"]
[WhiteClock "0:01:57"]
[BlackClock "0:01:29"]

1. e4 {[%clk 0:03:00]}  e5 {[%clk 0:02:59]} 2. Nf3 {[%clk 0:03:00]}  Nc6 {[%clk 0:02:59]} 3. Bb5 {[%clk 0:02:58]}  Nf6 {[%clk 0:02:58]} 4. O-O {[%clk 0:02:55]}  Nxe4 {[%clk 0:02:58]} 5. Re1 {[%clk 0:02:52]}  Nd6 {[%clk 0:02:57]} 6. Bxc6 {[%clk 0:02:51]}  dxc6 {[%clk 0:02:57]} 7. Nxe5 {[%clk 0:02:51]}  Be7 {[%clk 0:02:57]} 8. d4 {[%clk 0:02:50]}  O-O {[%clk 0:02:57]} 9. c3 {[%clk 0:02:50]}  Bf5 {[%clk 0:02:53]} 10. Bf4 {[%clk 0:02:49]}  Kh8 {[%clk 0:02:37]} 11. Qb3 {[%clk 0:02:46]}  Rb8 {[%clk 0:02:35]} 12. Nxf7+ {[%clk 0:02:45]}  Nxf7 {[%clk 0:02:32]} 13. Nd2 {[%clk 0:02:44]}  Nd6 {[%clk 0:02:30]} 14. Re3 {[%clk 0:02:41]}  Bg6 {[%clk 0:02:27]} 15. Rae1 {[%clk 0:02:40]}  Bg5 {[%clk 0:02:22]} 16. Bxg5 {[%clk 0:02:36]}  Qxg5 {[%clk 0:02:22]} 17. Nf3 {[%clk 0:02:37]}  Qf6 {[%clk 0:02:16]} 18. Re6 {[%clk 0:02:33]}  Qf7 {[%clk 0:02:11]} 19. Kh1 {[%clk 0:02:23]}  Rbe8 {[%clk 0:01:59]} 20. Ng5 {[%clk 0:02:19]}  Qxf2 {[%clk 0:01:44]} 21. Rxe8 {[%clk 0:02:04]}  Nxe8 {[%clk 0:01:32]} 22. Qe6 {[%clk 0:01:57]}  Qf1+ {[%clk 0:01:29]} 0-1


[Site "https://www.chess.com"]

[Event "Titled Tuesday Blitz January 17 Early 2023"]
[White "Ezat, Mohamed"]
[Black "Matveeva, Olga"]
[WhiteFideId "10600906"]
[BlackFideId "24107018"]
[WhiteElo "2402"]
[BlackElo "2128"]
[Result "0-1"]
[Round "09"]
[TimeControl "180+2"]
[Date "2023.01.17"]
[WhiteClock "0:00:02"]
[BlackClock "0:00:08"]

1. e4 {[%clk 0:01:39]}  e6 {[%clk 0:02:59]} 2. d4 {[%clk 0:01:37]}  d5 {[%clk 0:03:00]} 3. Nd2 {[%clk 0:01:38]}  c5 {[%clk 0:02:59]} 4. Ngf3 {[%clk 0:01:38]}  cxd4 {[%clk 0:02:59]} 5. Nxd4 {[%clk 0:01:38]}  Nf6 {[%clk 0:02:57]} 6. Bb5+ {[%clk 0:01:34]}  Bd7 {[%clk 0:02:53]} 7. Qe2 {[%clk 0:01:30]}  Nc6 {[%clk 0:02:50]} 8. Nxc6 {[%clk 0:01:29]}  bxc6 {[%clk 0:02:51]} 9. Bd3 {[%clk 0:01:29]}  e5 {[%clk 0:02:28]} 10. O-O {[%clk 0:01:27]}  Bd6 {[%clk 0:02:27]} 11. c4 {[%clk 0:01:25]}  O-O {[%clk 0:02:23]} 12. cxd5 {[%clk 0:01:22]}  cxd5 {[%clk 0:02:24]} 13. exd5 {[%clk 0:01:22]}  Nxd5 {[%clk 0:02:23]} 14. Bxh7+ {[%clk 0:01:21]}  Kxh7 {[%clk 0:02:11]} 15. Qd3+ {[%clk 0:01:20]}  g6 {[%clk 0:02:00]} 16. Qxd5 {[%clk 0:01:20]}  Be6 {[%clk 0:01:59]} 17. Qf3 {[%clk 0:01:18]}  Kg7 {[%clk 0:01:58]} 18. Ne4 {[%clk 0:01:16]}  Be7 {[%clk 0:01:58]} 19. Qg3 {[%clk 0:01:14]}  f6 {[%clk 0:01:54]} 20. Be3 {[%clk 0:01:12]}  Rh8 {[%clk 0:01:51]} 21. Rfd1 {[%clk 0:01:08]}  Qa5 {[%clk 0:01:49]} 22. a3 {[%clk 0:00:58]}  Rac8 {[%clk 0:01:37]} 23. b4 {[%clk 0:00:56]}  Qa4 {[%clk 0:01:35]} 24. Bc5 {[%clk 0:00:57]}  Rhd8 {[%clk 0:01:22]} 25. Re1 {[%clk 0:00:44]}  Qe8 {[%clk 0:01:07]} 26. Bxe7 {[%clk 0:00:40]}  Qxe7 {[%clk 0:01:08]} 27. f4 {[%clk 0:00:38]}  f5 {[%clk 0:00:53]} 28. Nc5 {[%clk 0:00:36]}  e4 {[%clk 0:00:51]} 29. Qc3+ {[%clk 0:00:36]}  Kf7 {[%clk 0:00:50]} 30. Rad1 {[%clk 0:00:30]}  Rxd1 {[%clk 0:00:44]} 31. Rxd1 {[%clk 0:00:30]}  Rd8 {[%clk 0:00:44]} 32. Re1 {[%clk 0:00:29]}  Qd6 {[%clk 0:00:39]} 33. Qh3 {[%clk 0:00:25]}  Qd4+ {[%clk 0:00:37]} 34. Kh1 {[%clk 0:00:24]}  Rh8 {[%clk 0:00:29]} 35. Qg3 {[%clk 0:00:24]}  Bc4 {[%clk 0:00:27]} 36. h3 {[%clk 0:00:19]}  a5 {[%clk 0:00:26]} 37. Rb1 {[%clk 0:00:16]}  a4 {[%clk 0:00:23]} 38. Rc1 {[%clk 0:00:15]}  Rd8 {[%clk 0:00:20]} 39. Qc3 {[%clk 0:00:15]}  Be6 {[%clk 0:00:16]} 40. Qc2 {[%clk 0:00:13]}  e3 {[%clk 0:00:13]} 41. Qxa4 {[%clk 0:00:12]}  Qxf4 {[%clk 0:00:13]} 42. Qa7+ {[%clk 0:00:11]}  Kf6 {[%clk 0:00:12]} 43. Qb6 {[%clk 0:00:11]}  Re8 {[%clk 0:00:11]} 44. Nd7+ {[%clk 0:00:09]}  Kg7 {[%clk 0:00:10]} 45. Nc5 {[%clk 0:00:07]}  e2 {[%clk 0:00:08]} 46. Nxe6+ {[%clk 0:00:06]}  Rxe6 {[%clk 0:00:09]} 47. Rc7+ {[%clk 0:00:05]}  Kf6 {[%clk 0:00:08]} 48. Rc6 {[%clk 0:00:02]}  e1=Q+ {[%clk 0:00:08]} 0-1


[Site "https://www.chess.com"]

[Event "Titled Tuesday Blitz January 17 Early 2023"]
[White "Levitan, Caleb Levi"]
[Black "Biastoch, Bennet"]
[WhiteFideId "14332620"]
[BlackFideId "12939889"]
[WhiteElo "2129"]
[BlackElo "2257"]
[Result "0-1"]
[Round "09"]
[TimeControl "180+2"]
[Date "2023.01.17"]
[WhiteClock "0:00:01"]
[BlackClock "0:01:19"]

1. e4 {[%clk 0:02:59]}  c5 {[%clk 0:02:59]} 2. Nf3 {[%clk 0:02:59]}  d6 {[%clk 0:02:59]} 3. d4 {[%clk 0:03:00]}  cxd4 {[%clk 0:02:59]} 4. Nxd4 {[%clk 0:03:01]}  Nf6 {[%clk 0:03:00]} 5. Nc3 {[%clk 0:03:01]}  a6 {[%clk 0:03:00]} 6. Bc4 {[%clk 0:03:01]}  e6 {[%clk 0:03:00]} 7. Bb3 {[%clk 0:03:01]}  b5 {[%clk 0:03:00]} 8. Qf3 {[%clk 0:02:49]}  Qc7 {[%clk 0:02:58]} 9. Bg5 {[%clk 0:02:39]}  Nbd7 {[%clk 0:02:46]} 10. O-O-O {[%clk 0:02:37]}  Bb7 {[%clk 0:02:46]} 11. Rhe1 {[%clk 0:02:36]}  Rc8 {[%clk 0:02:31]} 12. Qg3 {[%clk 0:01:57]}  Nc5 {[%clk 0:02:07]} 13. Bxf6 {[%clk 0:01:40]}  gxf6 {[%clk 0:02:05]} 14. Bd5 {[%clk 0:01:22]}  b4 {[%clk 0:01:50]} 15. Bxb7 {[%clk 0:01:01]}  Qxb7 {[%clk 0:01:47]} 16. Nd5 {[%clk 0:00:20]}  exd5 {[%clk 0:01:38]} 17. exd5+ {[%clk 0:00:20]}  Kd8 {[%clk 0:01:36]} 18. Qf4 {[%clk 0:00:17]}  Nd7 {[%clk 0:01:25]} 19. Nc6+ {[%clk 0:00:08]}  Kc7 {[%clk 0:01:25]} 20. Rd4 {[%clk 0:00:06]}  h5 {[%clk 0:01:24]} 21. Rc4 {[%clk 0:00:06]}  Bh6 {[%clk 0:01:22]} 22. Nd4+ {[%clk 0:00:01]}  Kb8 {[%clk 0:01:21]} 23. Rxc8+ {[%clk 0:00:01]}  Qxc8 {[%clk 0:01:21]} 24. Qxh6 {[%clk 0:00:01]}  Rxh6 {[%clk 0:01:22]} 25. Nc6+ {[%clk 0:00:02]}  Kc7 {[%clk 0:01:22]} 26. Re7 {[%clk 0:00:02]}  Rg6 {[%clk 0:01:20]} 27. Nxb4 {[%clk 0:00:01]}  Rxg2 {[%clk 0:01:19]} 28. Nxa6+ {[%clk 0:00:01]}  Qxa6 {[%clk 0:01:19]} 0-1


[Site "https://www.chess.com"]